bitfinex/quotes_ETHUSD_20251217
["timestamp","ask_amount","ask_price","bid_price","bid_amount"]
[1765956850543,0.002,2948.6,2948.5,1.342704]
[1765956850858,1.0,2950.0,2949.0,1.342704]
[1765956851010,1.0,2950.0,2949.0,1.880704]
[1765956851358,0.4831,2949.8,2949.0,1.6632704]
[1765956851507,0.4831,2949.8,2949.0,2.12765063]
[1765956851707,0.4831,2949.8,2949.0,5.51863062]
[1765956852122,0.4831,2949.8,2949.0,5.52890776]
[1765956852824,0.4831,2949.8,2949.0,5.06660776]
[1765956853008,0.4831,2949.8,2949.0,4.39336022]
[1765956853009,0.0682,2949.1,2949.0,4.39336022]
[1765956853213,0.0682,2949.1,2949.0,3.92897999]
[1765956853412,0.002,2949.1,2949.0,4.86826022]
[1765956854741,0.002,2949.1,2949.0,4.39336022]
[1765956855246,0.5472,2949.1,2949.0,3.92897999]
[1765956855545,0.0682,2949.1,2949.0,3.92897999]
[1765956855747,0.002,2949.1,2949.0,4.40387999]
[1765956856061,0.002,2949.1,2949.0,3.92897999]
[1765956856348,0.002,2949.1,2949.0,11.67488881]
[1765956856551,1.0,2950.0,2949.9,0.9372]
[1765956856748,0.4831,2951.8,2950.2,1.342704]
[1765956856950,0.4831,2951.8,2950.2,14.80792545]
[1765956857306,0.4831,2951.9,2950.7,2.363942]
[1765956857449,0.4831,2951.9,2950.5,0.92668023]
[1765956857450,0.4831,2951.9,2950.8,0.85169524]
[1765956857747,0.5472,2951.0,2950.9,0.85169524]
[1765956858348,0.5472,2951.0,2950.9,0.539]
[1765956859056,0.0662,2950.5,2950.3,3.38945334]
[1765956859351,0.6126,2950.7,2950.4,0.539]
[1765956859551,3.38848243,2951.2,2950.4,3.92837093]
[1765956859734,0.33884824,2951.1,2950.4,3.92837093]
[1765956859939,0.82194824,2951.1,2950.4,3.92837093]
[1765956860252,0.1324,2950.6,2950.4,3.92836081]
[1765956861232,0.1324,2950.6,2950.4,0.539]
[1765956861839,0.4806,2950.5,2950.1,3.38963384]
[1765956862056,0.1324,2950.6,2950.2,0.539]
[1765956862361,0.1324,2950.6,2950.2,3.9286007]
[1765956864079,0.0179,2950.3,2950.2,0.539]
[1765956864367,0.4964,2950.3,2950.2,0.539]
[1765956866572,0.0179,2950.3,2950.2,3.9286007]
[1765956866771,0.6155,2950.6,2950.2,3.9286007]
[1765956867364,0.0179,2950.3,2950.2,0.539]
[1765956867562,0.4964,2950.3,2950.2,0.539]
[1765956867763,0.0048,2950.1,2950.0,3.38971995]
[1765956867940,3.52159925,2950.6,2949.5,0.405504]
[1765956868135,0.35215993,2950.5,2950.0,3.8521305]
[1765956868341,0.4831,2950.5,2950.1,0.539]
[1765956868569,0.4831,2950.5,2950.1,3.92869282]
[1765956868754,0.4831,2950.5,2950.1,3.92969282]
[1765956869648,0.4831,2950.5,2950.1,7.31940842]
[1765956870052,0.4831,2950.5,2950.1,0.54]
[1765956870369,0.002,2950.7,2950.6,0.4749]
[1765956870674,0.002,2950.7,2950.6,0.539]
[1765956870840,0.0187,2950.7,2950.6,0.539]
[1765956871040,0.4972,2950.7,2950.6,0.539]
[1765956871241,0.0187,2950.7,2950.6,0.539]
[1765956871543,0.002,2950.7,2950.6,1.0139]
[1765956872076,0.002,2950.7,2950.6,0.539]
[1765956872368,0.002,2950.7,2950.6,4.86534119]
[1765956872570,0.002,2950.7,2950.6,3.92814119]
[1765956872783,0.002,2950.7,2950.6,4.40304119]
[1765956873371,0.002,2950.7,2950.6,3.92814119]
[1765956873578,0.4785,2950.6,2950.5,3.38923608]
[1765956873754,0.4785,2950.6,2950.5,3.92823608]
[1765956875789,0.4785,2950.6,2950.5,0.539]
[1765956876078,0.4998,2950.6,2950.5,0.539]
[1765956876485,0.4785,2950.6,2950.5,3.92825605]
[1765956876793,0.4551,2950.2,2950.1,0.001]
[1765956876944,0.4551,2950.2,2950.1,0.54]
[1765956877304,0.4995,2950.2,2950.1,0.54]
[1765956877786,0.4995,2950.2,2950.1,3.9297156]
[1765956878089,0.4995,2950.2,2950.1,0.54]
[1765956878889,0.4995,2950.2,2950.1,0.001]
[1765956879186,0.88839178,2950.2,2950.1,0.001]
[1765956879387,0.4551,2950.2,2950.1,0.001]
[1765956880100,0.002,2950.7,2950.6,0.9411]
[1765956880392,0.002,2950.7,2950.6,6.77724868]
[1765956881064,0.002,2950.7,2950.6,18.61733387]
[1765956881287,0.002,2950.7,2950.6,17.51961107]
[1765956881448,0.002,2950.7,2950.6,17.18035907]
[1765956883371,0.002,2951.9,2950.8,0.405504]
[1765956883597,0.002,2951.9,2951.4,0.48267714]
[1765956883797,0.002,2951.9,2951.5,0.539]
[1765956884316,0.002,2951.9,2951.6,0.01027714]
[1765956885203,0.002,2951.9,2951.8,5.77386845]
[1765956885506,0.002,2951.9,2951.8,20.86668874]
[1765956885707,0.002,2951.9,2951.8,11.40030952]
[1765956885877,0.002,2951.9,2951.8,8.43874352]
[1765956886278,0.002,2951.9,2951.8,17.06102952]
[1765956886703,0.002,2951.9,2951.8,21.40568874]
[1765956886905,0.002,2951.9,2951.8,7.89974352]
[1765956887109,0.002,2951.9,2951.8,8.43974352]
[1765956887404,0.002,2953.1,2953.0,0.4687]
[1765956887604,0.0401,2953.1,2953.0,0.54]
[1765956887806,0.1497,2952.9,2952.8,0.54]
[1765956888014,0.0046,2952.9,2952.8,0.54]
[1765956888186,3.43732539,2953.6,2952.8,0.54]
[1765956888187,6.82302929,2953.6,2952.8,1.0087]
[1765956888391,0.1852,2952.9,2952.8,0.54]
[1765956888591,0.6405,2952.9,2952.8,0.54]
[1765956889508,0.6405,2952.9,2952.2,6.77460876]
[1765956889702,0.6405,2952.9,2952.3,0.54]
[1765956889901,4.02706913,2952.9,2952.3,0.54]
[1765956890114,0.4595,2952.7,2952.3,0.54]
[1765956890613,0.4954,2952.4,2952.3,0.54]
[1765956890778,0.0046,2951.8,2951.7,3.38779367]
[1765956890980,0.4595,2952.2,2951.7,3.38779367]
[1765956891175,0.4595,2952.7,2951.8,0.4724]
[1765956891406,1.23803254,2952.7,2951.9,0.54]
[1765956891586,0.1451,2952.9,2952.1,0.1812]
[1765956891787,0.1451,2952.9,2952.1,0.46438023]
[1765956891987,0.4595,2952.8,2952.1,0.46438023]
[1765956892205,0.4595,2952.8,2952.0,3.38753387]
[1765956892419,0.85861378,2952.7,2952.1,0.46438023]
[1765956892786,0.85861378,2952.7,2952.0,3.38753387]
[1765956892994,0.4595,2952.6,2952.1,0.54]
[1765956893512,0.0401,2952.2,2952.1,0.54]
[1765956894122,0.4954,2952.2,2951.6,0.54]
[1765956894411,0.4553,2952.1,2951.6,3.92796708]
[1765956894582,0.4965,2951.7,2951.6,0.54]
[1765956895635,0.4595,2952.4,2951.6,3.38897175]
[1765956895787,0.4595,2952.3,2951.6,3.38897175]
[1765956896411,0.0401,2951.7,2951.6,3.38897175]
[1765956897004,0.46438023,2952.4,2951.6,3.38897175]
[1765956897005,0.1463,2952.1,2951.6,3.38897175]
[1765956897211,0.6058,2952.1,2951.6,3.38897175]
[1765956897598,0.4595,2952.0,2951.6,0.001]
[1765956897807,0.0401,2951.7,2951.6,3.38898506]
[1765956898216,0.0401,2951.7,2951.6,0.001]
[1765956898413,0.0401,2951.7,2951.6,3.38899295]
[1765956898622,0.1463,2952.1,2951.6,3.38899295]
[1765956898791,0.1463,2952.1,2951.6,7.2493859]
[1765956898985,0.1463,2952.1,2951.6,6.7769859]
[1765956899188,0.4595,2952.0,2951.6,6.7769859]
[1765956900521,0.1463,2952.1,2951.6,6.7769859]
[1765956900701,7.23990891,2952.7,2951.6,7.2493859]
[1765956900892,0.4595,2952.5,2951.6,3.38899295]
[1765956901216,0.4595,2952.5,2951.6,6.7769859]
[1765956901807,3.84649191,2952.5,2951.8,3.38776339]
[1765956902010,0.4595,2952.4,2951.9,0.54]
[1765956902195,0.0401,2952.0,2951.9,0.54]
[1765956903223,0.1467,2951.7,2951.6,0.001]
[1765956904123,3.53457817,2951.7,2951.6,0.001]
[1765956905304,0.1467,2951.7,2951.6,0.001]
[1765956905505,3.53457817,2951.7,2951.6,0.001]
[1765956905729,3.38661609,2952.8,2951.8,7.18103078]
[1765956905892,0.6413,2952.9,2951.9,0.9959]
[1765956906695,0.6413,2952.9,2951.9,0.4559]
[1765956906895,0.6,2953.3,2952.6,0.4525]
[1765956907094,0.6,2953.3,2952.6,1.4494]
[1765956907431,1.095,2953.3,2952.6,0.541]
[1765956907792,1.095,2953.3,2952.6,4.38034549]
[1765956908028,0.1463,2952.9,2952.6,3.38684549]
[1765956908216,0.0069,2952.7,2952.6,0.541]
[1765956908395,0.497,2952.7,2952.6,0.541]
[1765956908594,0.497,2952.7,2952.6,3.92784549]
[1765956908793,0.002,2952.7,2952.6,5.11182837]
[1765956908993,0.002,2952.7,2952.6,13.05440012]
[1765956910508,0.05162659,2953.6,2953.5,0.9084]
[1765956910712,0.17324043,2955.9,2953.6,6.38707175]
[1765956910713,0.1571,2954.8,2953.6,6.38707175]
[1765956911127,0.64115544,2955.4,2954.0,0.4525]
[1765956911328,0.495,2955.7,2954.4,0.4559]
[1765956911512,0.495,2955.7,2954.6,0.4559]
[1765956911702,0.495,2955.7,2955.0,4.60878752]
[1765956911908,0.17324043,2955.9,2955.2,3.38386572]
[1765956912103,0.4847,2955.4,2955.3,0.543]
[1765956912303,0.17324043,2955.9,2955.3,0.543]
[1765956912304,0.1571,2958.2,2955.3,4.60878752]
[1765956912504,0.4955,2955.7,2955.5,0.405504]
[1765956912743,0.8274,2955.4,2955.3,12.96694522]
[1765956912913,0.8274,2955.4,2955.3,0.31133107]
[1765956913404,0.46438023,2955.8,2954.2,0.4559]
[1765956913405,0.4955,2955.8,2954.2,0.4559]
[1765956913600,0.4955,2955.8,2954.1,0.1958]
[1765956913601,0.0948,2955.9,2954.3,0.9999]
[1765956913934,0.4955,2955.8,2954.3,0.9999]
[1765956914109,0.4955,2955.8,2954.8,0.46438023]
[1765956914310,0.4955,2955.8,2954.9,0.546]
[1765956914931,0.4955,2955.7,2954.9,0.546]
[1765956915134,0.0948,2955.9,2955.1,4.60878752]
[1765956915344,0.4955,2956.6,2955.3,0.405504]
[1765956915504,0.1871,2956.9,2955.9,4.60878752]
[1765956915837,0.4955,2956.8,2956.0,0.546]
[1765956916044,0.4955,2956.6,2955.9,0.546]
[1765956916205,0.9069,2956.0,2955.9,0.546]
[1765956916403,0.17663609,2957.2,2956.1,0.1788]
[1765956916598,0.6,2957.3,2956.7,0.4559]
[1765956916833,0.6,2957.3,2956.1,0.1788]
[1765956916834,0.6,2957.3,2957.2,5.93457175]
[1765956917047,0.6,2957.3,2957.2,1.0019]
[1765956917208,0.6,2957.3,2957.2,0.861404]
[1765956917417,0.6,2957.3,2957.2,6.48157175]
[1765956917999,0.6,2957.3,2957.2,9.86314891]
[1765956918200,0.6,2957.3,2956.9,0.4559]
[1765956918434,0.6,2957.3,2956.8,0.1958]
[1765956918435,0.6,2957.3,2957.2,4.70736139]
[1765956918636,0.6,2957.3,2957.2,6.08268335]
[1765956919434,0.6,2957.3,2957.2,6.22417935]
[1765956919734,0.6,2957.3,2957.2,5.75979912]
[1765956919923,0.6,2957.3,2957.2,0.01027714]
[1765956920122,0.602,2957.3,2957.2,0.55727714]
[1765956920528,0.602,2957.3,2956.0,0.4559]
[1765956920716,0.602,2957.3,2956.4,0.547]
[1765956920717,0.4955,2957.2,2956.4,0.547]
[1765956921041,0.4955,2956.5,2955.6,0.4559]
[1765956921370,0.4955,2956.5,2955.0,4.60878752]
[1765956921510,0.4955,2956.5,2954.8,0.6517]
[1765956921834,0.4955,2956.5,2955.2,3.38383503]
[1765956922035,0.4955,2956.5,2954.9,0.547]
[1765956922036,0.4955,2956.3,2955.0,3.38409475]
[1765956922213,0.4955,2956.1,2955.4,0.01027714]
[1765956922546,0.4955,2956.1,2955.2,0.01027714]
[1765956922846,0.4955,2956.1,2955.4,0.01027714]
[1765956923055,0.4955,2956.1,2955.4,0.547]
[1765956923348,0.1871,2957.0,2955.9,5.06468752]
[1765956923534,0.1871,2957.0,2956.1,0.1958]
[1765956923730,0.4955,2956.9,2956.2,0.547]
[1765956924057,0.1871,2957.0,2955.5,0.4559]
[1765956924058,0.4955,2956.7,2955.5,3.38352224]
[1765956924230,0.4955,2956.7,2955.0,5.07496466]
[1765956924231,0.4955,2956.5,2955.0,0.01027714]
[1765956924410,0.6826,2955.3,2955.0,0.01027714]
[1765956924607,0.1871,2955.5,2955.1,0.237]
[1765956924867,0.1871,2956.1,2955.2,3.38382564]
[1765956925143,0.4955,2956.0,2955.3,0.01027714]
[1765956925331,0.4955,2956.0,2955.3,0.547]
[1765956925846,0.4955,2956.0,2955.3,7.31450244]
[1765956926046,0.1871,2956.1,2955.3,3.93075122]
[1765956926419,0.1871,2956.1,2955.3,7.31450244]
[1765956926613,0.4955,2956.0,2955.5,0.01027714]
[1765956926836,0.4955,2956.0,2955.3,0.547]
[1765956927546,0.1871,2956.4,2955.4,4.60878752]
[1765956927843,0.1871,2956.4,2955.5,0.03383522]
[1765956927844,0.6826,2956.4,2955.5,0.03383522]
[1765956928049,0.6826,2956.4,2955.6,6.76681552]
[1765956928252,0.002,2956.1,2955.7,1.01841312]
[1765956928454,0.4975,2956.1,2954.9,0.01027714]
[1765956928660,0.4975,2956.1,2955.5,3.38350777]
[1765956928861,0.002,2956.1,2955.6,0.547]
[1765956929153,0.002,2956.1,2955.1,3.38395394]
[1765956929154,0.4955,2956.0,2955.1,3.38395394]
[1765956929357,0.4955,2956.0,2955.3,0.547]
[1765956930151,0.4955,2955.9,2955.3,0.547]
[1765956930451,0.4955,2955.8,2955.3,0.547]
[1765956930748,0.4955,2955.8,2954.8,0.01027714]
[1765956931051,0.4955,2955.8,2955.0,3.38405989]
[1765956931254,0.4955,2955.8,2954.9,3.3841226]
[1765956931421,0.4955,2955.8,2955.1,0.546]
[1765956932146,0.38805441,2955.9,2955.1,0.546]
[1765956932147,0.4955,2955.6,2955.1,0.546]
[1765956932950,0.4955,2955.5,2955.1,0.546]
[1765956933872,0.8387,2955.2,2955.1,0.546]
[1765956934021,3.38361434,2955.5,2954.9,0.546]
[1765956934345,0.4506,2955.3,2954.9,3.93020927]
[1765956934548,0.4506,2955.6,2954.9,3.93020927]
[1765956935323,0.4506,2955.6,2955.0,0.04411808]
[1765956935550,0.4506,2955.6,2955.1,0.73585366]
[1765956935749,0.1995,2954.9,2954.8,3.38431337]
[1765956935936,0.1995,2955.6,2954.9,6.76834643]
[1765956936252,4.03350852,2955.6,2954.9,3.38413716]
[1765956936449,0.4506,2955.5,2954.8,0.546]
[1765956936647,0.4506,2955.5,2954.2,0.1958]
[1765956936851,0.8268,2955.1,2955.0,0.001]
[1765956937651,0.4833,2955.2,2954.5,0.546]
[1765956937843,0.8277,2954.6,2954.5,0.546]
[1765956938156,0.8277,2954.6,2954.1,3.38508705]
[1765956938354,0.8277,2954.6,2952.7,3.38773078]
[1765956938355,0.4833,2953.2,2952.7,3.38773078]
[1765956938554,0.4833,2953.7,2952.7,6.77446156]
[1765956938855,0.1406,2953.8,2952.8,0.49366616]
[1765956939058,0.6239,2953.8,2952.8,0.4598]
[1765956939457,0.548,2954.3,2953.1,0.1982]
[1765956939458,0.1822,2954.1,2953.1,0.1982]
[1765956939657,0.1822,2954.1,2953.2,0.548]
[1765956939830,0.1822,2954.1,2953.2,5.55020778]
[1765956940026,3.52469475,2955.0,2953.3,0.46438023]
[1765956940227,0.4833,2954.8,2953.5,10.61724032]
[1765956940458,0.4833,2954.8,2954.4,0.01027714]
[1765956940754,0.4833,2954.8,2954.6,0.01027714]
[1765956941560,0.4833,2954.8,2954.4,0.01027714]
[1765956942232,0.4833,2954.8,2954.6,3.39477654]
[1765956942438,0.4833,2954.8,2954.6,0.01027714]
[1765956942654,0.1406,2955.0,2954.7,3.38443835]
[1765956942856,0.1406,2955.0,2954.9,0.01027714]
[1765956943046,0.4833,2955.3,2954.9,0.01027714]
[1765956943247,0.4833,2955.3,2955.1,0.01027714]
[1765956943449,0.1995,2955.6,2955.1,0.01027714]
[1765956943668,0.55,2956.1,2955.1,0.01027714]
[1765956943669,0.1822,2955.8,2955.4,0.01027714]
[1765956943867,0.6655,2955.8,2955.6,0.01027714]
[1765956944378,0.6655,2955.8,2955.6,3.39366443]
[1765956944759,0.6655,2955.8,2955.6,0.01027714]
[1765956945482,0.6655,2955.8,2955.6,3.39366917]
[1765956945691,0.1822,2955.8,2955.6,3.39366917]
[1765956945983,0.002,2956.1,2955.6,6.77707693]
[1765956946168,0.002,2956.1,2955.9,0.01027714]
[1765956946483,0.002,2956.1,2956.0,3.38294993]
[1765956946783,0.002,2956.1,2955.9,0.01027714]
[1765956947074,0.4833,2955.6,2955.3,0.001]
[1765956948177,0.4833,2955.6,2955.3,3.38474662]
[1765956948378,0.4833,2955.6,2955.3,0.548]
[1765956948979,0.1822,2955.7,2955.3,3.93173852]
[1765956949182,0.1822,2955.7,2955.4,0.01027714]
[1765956949564,0.1822,2955.7,2955.6,0.01027714]
[1765956950563,0.1822,2955.7,2955.6,3.3936849]
[1765956950761,0.4833,2955.6,2955.5,0.01027714]
[1765956950980,0.1822,2955.7,2955.5,3.93047505]
[1765956951590,0.6655,2955.9,2955.6,0.01027714]
[1765956951788,0.4833,2955.8,2955.3,0.01127714]
[1765956951980,0.8581,2955.4,2955.3,0.001]
[1765956952786,4.24173673,2955.4,2955.3,0.001]
[1765956958281,0.8581,2955.4,2955.3,0.001]
[1765956959298,0.4853,2955.7,2955.3,0.01127714]
[1765956959666,0.4871,2955.0,2954.9,0.001]
[1765956959873,0.4833,2954.8,2953.4,0.1982]
[1765956960114,0.4833,2954.8,2953.5,0.547]
[1765956960316,0.4833,2954.8,2953.5,3.38581344]
[1765956960466,0.1822,2953.7,2953.6,0.547]
[1765956960671,0.1822,2954.0,2953.6,0.95055848]
[1765956961079,0.1822,2954.0,2953.8,3.38540205]
[1765956961469,0.1822,2954.0,2953.8,3.39567919]
[1765956961704,0.4833,2954.4,2953.8,6.78114875]
[1765956961901,0.4833,2954.4,2954.0,0.01027714]
[1765956962440,0.4833,2954.8,2954.0,0.01027714]
[1765956962610,0.4833,2954.8,2954.2,0.01027714]
[1765956962905,0.3748,2954.5,2954.4,0.01027714]
[1765956963209,1.0403,2953.9,2953.1,4.04419948]
[1765956963386,0.6505,2953.9,2953.8,0.55727714]
[1765956963574,0.6505,2953.9,2953.8,0.01027714]
[1765956963774,0.6505,2953.9,2953.8,3.9427467]
[1765956964894,0.6505,2953.9,2952.7,0.46538023]
[1765956964895,0.4675,2953.6,2952.7,0.46538023]
[1765956965090,0.4675,2953.6,2953.1,0.547]
[1765956965302,0.6619,2954.1,2953.4,3.38592049]
[1765956965624,0.6619,2954.1,2953.6,3.3856988]
[1765956965625,0.184,2954.1,2953.6,3.3856988]
[1765956965908,0.4628,2954.4,2953.7,0.547]
[1765956966113,0.4628,2954.4,2954.0,0.01027714]
[1765956966484,0.1822,2954.9,2954.2,0.01027714]
[1765956966685,0.184,2955.1,2954.3,0.547]
[1765956966886,0.002,2955.7,2954.3,0.547]
[1765956966887,0.4628,2955.6,2954.5,0.46438023]
[1765956967122,0.4628,2955.6,2954.6,1.55537263]
[1765956967328,0.002,2955.7,2954.7,0.4935]
[1765956967494,0.002,2955.7,2955.5,0.01027714]
[1765956967701,0.184,2954.8,2954.7,0.01027714]
[1765956967887,0.4628,2954.7,2954.5,0.547]
[1765956968089,0.3918,2954.6,2954.5,0.547]
[1765956968287,0.4621,2954.5,2954.0,3.39542317]
[1765956968606,0.184,2954.8,2954.3,3.38484749]
[1765956968914,0.4628,2954.7,2954.2,3.38501117]
[1765956969114,0.8539,2954.3,2954.1,3.93208195]
[1765956969416,0.4621,2954.7,2954.1,7.3172077]
[1765956969615,0.4621,2954.7,2954.2,0.01027714]
[1765956969817,0.4628,2955.1,2954.4,0.01027714]
[1765956970016,0.4628,2955.1,2954.6,0.01027714]
[1765956970017,0.184,2954.7,2954.6,0.01027714]
[1765956970218,0.184,2954.9,2954.6,0.55727714]
[1765956970429,0.184,2954.9,2954.6,0.547]
[1765956970724,0.4621,2954.7,2954.2,0.74405334]
[1765956970924,0.4621,2954.7,2954.5,3.93160158]
[1765956971124,0.4614,2954.5,2954.2,0.01027714]
[1765956971416,0.184,2954.9,2954.0,3.38520559]
[1765956971417,0.3938,2954.1,2954.0,3.38520559]
[1765956971617,0.8538,2954.1,2954.0,3.93220559]
[1765956971785,0.46,2954.5,2954.0,7.31744594]
[1765956971990,0.6468,2954.9,2954.1,0.19947714]
[1765956972189,0.4628,2954.8,2954.1,0.01027714]
[1765956972627,0.4628,2954.8,2953.6,3.3856554]
[1765956972628,0.3879,2953.6,2953.5,0.46438023]
[1765956972833,3.56821559,2954.9,2953.1,0.1892]
[1765956972834,0.6468,2953.8,2953.1,0.1892]
[1765956973029,0.6468,2953.8,2953.2,3.3861288]
[1765956973247,0.6468,2953.8,2953.2,6.77228618]
[1765956973394,0.6468,2953.8,2953.3,0.69614862]
[1765956973730,0.184,2953.8,2953.3,0.69614862]
[1765956973937,0.4628,2953.7,2953.3,0.69614862]
[1765956974405,0.4628,2953.7,2953.4,0.547]
[1765956974860,0.184,2954.1,2953.4,0.547]
[1765956975018,0.3918,2953.6,2953.5,3.38581344]
[1765956975356,0.3918,2953.6,2953.5,0.547]
[1765956975357,0.8539,2953.6,2953.5,0.547]
[1765956975796,0.8539,2953.6,2953.4,3.38592067]
[1765956975995,0.8539,2953.6,2953.5,0.547]
[1765956976839,0.4621,2953.5,2953.4,0.01027714]
[1765956977042,0.8546,2953.5,2953.4,3.93292808]
[1765956977213,0.8546,2953.5,2953.4,3.94320522]
[1765956977413,0.4621,2953.5,2953.4,3.94320522]
[1765956977626,0.184,2954.1,2953.4,4.64714605]
[1765956977811,0.4628,2954.3,2953.8,0.01027714]
[1765956978012,0.4628,2954.3,2953.9,0.55727714]
[1765956978608,0.8539,2954.0,2953.9,0.547]
[1765956979025,0.6468,2953.9,2953.7,3.38558418]
[1765956979205,0.4628,2954.3,2953.8,0.55727714]
[1765956979625,0.184,2953.9,2953.8,0.547]
[1765956979825,0.5758,2953.9,2953.8,0.547]
[1765956980633,0.184,2953.9,2953.8,0.547]
[1765956981337,0.4628,2954.3,2953.8,3.93246956]
[1765956981532,0.4628,2954.3,2953.8,3.9427467]
[1765956981835,0.4628,2954.2,2953.8,0.55727714]
[1765956982000,0.4628,2954.2,2953.8,3.39571571]
[1765956982206,0.4628,2954.2,2953.9,0.547]
[1765956983141,0.8539,2954.0,2953.9,0.547]
[1765956983314,0.6468,2953.9,2953.6,3.38560969]
[1765956983517,0.3918,2953.8,2953.7,0.547]
[1765956984041,0.3918,2953.8,2953.4,3.3868572]
[1765956984042,0.4628,2953.8,2953.4,3.3868572]
[1765956984205,0.4628,2954.5,2953.6,6.77138956]
[1765956984411,0.4628,2954.5,2953.7,0.03385584]
[1765956984610,0.4628,2954.5,2953.8,0.547]
[1765956985240,6.7688767,2954.7,2953.4,0.4945]
[1765956985461,0.186,2954.9,2953.4,0.4945]
[1765956985462,0.4628,2954.6,2953.5,0.547]
[1765956985747,0.186,2954.9,2953.6,0.4935]
[1765956985904,0.4628,2954.8,2953.6,0.4935]
[1765956986637,0.002,2954.9,2954.1,0.6827]
[1765956986803,0.4648,2954.9,2954.2,0.547]
[1765956987008,0.4648,2954.9,2954.3,0.547]
[1765956987306,0.4648,2954.9,2954.4,0.547]
[1765956987742,0.8539,2954.6,2954.5,0.547]
[1765956988243,0.4648,2954.9,2954.1,6.95941994]
[1765956988443,0.8539,2954.6,2954.2,0.547]
[1765956988813,0.3918,2954.6,2954.2,0.547]
[1765956989354,0.3918,2954.6,2953.8,0.46538023]
[1765956989658,0.4621,2954.5,2953.9,0.547]
[1765956990005,1.0386,2953.9,2953.8,0.001]
[1765956990432,0.184,2954.3,2953.9,3.38529346]
[1765956990623,0.4628,2954.2,2953.9,3.38529346]
[1765956990823,0.3918,2954.1,2954.0,0.547]
[1765956991029,0.8539,2954.1,2954.0,0.547]
[1765956991419,0.3918,2954.1,2954.0,3.93224035]
[1765956991820,0.3918,2954.1,2954.0,0.547]
[1765956992432,0.3918,2954.1,2954.0,3.93224035]
[1765956992622,0.3918,2954.1,2954.0,0.547]
[1765956993007,0.8539,2954.1,2954.0,0.547]
[1765956993639,0.4962,2954.1,2954.0,0.547]
[1765956993823,0.8549,2954.1,2954.0,0.547]
[1765956994843,0.4705,2953.9,2953.8,0.001]
[1765956995048,0.8546,2953.9,2953.8,0.001]
[1765956995213,3.38432381,2954.8,2953.8,0.001]
[1765956995411,0.4714,2954.5,2953.8,3.3864601]
[1765956995628,1.0376,2953.9,2953.8,0.001]
[1765956997528,0.1928,2954.1,2953.8,0.001]
[1765956997955,0.4892,2954.4,2953.8,0.001]
[1765956998256,0.4892,2954.4,2953.8,0.55727714]
[1765956998636,0.002,2954.9,2954.1,0.01027714]
[1765956998960,0.4892,2954.8,2954.2,0.546]
[1765956999161,0.4892,2954.8,2954.2,0.55627714]
[1765956999630,0.3569,2954.4,2954.3,3.38489659]
[1765957000030,0.4892,2954.8,2954.3,6.76979318]
[1765957003067,0.002,2954.9,2954.4,0.01027714]
[1765957003482,0.4912,2954.9,2954.4,0.01027714]
[1765957004279,0.4912,2954.9,2954.4,3.38478202]
[1765957004567,0.3569,2954.5,2954.4,3.38478202]
[1765957005458,0.0049,2954.4,2954.2,0.55627714]
[1765957005859,0.8425,2954.3,2954.2,3.93089685]
[1765957006065,0.8425,2954.3,2954.2,0.546]
[1765957006436,0.8425,2954.3,2954.2,3.93101117]
[1765957007771,0.4892,2954.8,2954.2,7.31602234]
[1765957008153,0.4892,2954.8,2954.2,3.93101117]
[1765957008358,0.3569,2954.3,2954.2,3.93101117]
[1765957009430,0.4892,2954.6,2954.2,7.31602234]
[1765957009870,0.8447,2954.3,2954.2,0.546]
[1765957010029,0.3569,2954.3,2954.2,3.93101117]
[1765957010236,0.4878,2954.7,2954.2,7.31602234]
[1765957010458,0.3582,2954.3,2954.2,3.93101117]
[1765957010662,0.8447,2954.3,2954.2,3.93101117]
[1765957011659,0.4865,2954.6,2954.2,7.31602234]
[1765957012940,0.4865,2954.6,2954.2,3.93101117]
[1765957013148,0.3594,2954.3,2954.2,3.93101117]
[1765957017265,0.8447,2954.3,2954.2,0.546]
[1765957017486,0.6869,2953.9,2953.8,3.38645544]
[1765957017668,0.6869,2953.9,2953.8,3.93045544]
[1765957017841,0.6869,2953.9,2953.8,0.001]
[1765957018369,0.6869,2953.9,2953.8,3.38646956]
[1765957019161,0.0049,2953.9,2953.8,3.3967467]
[1765957019339,0.4892,2954.2,2953.8,6.77193912]
[1765957019545,0.4892,2954.7,2953.8,7.84311881]
[1765957019766,0.5497,2953.9,2953.8,3.38646956]
[1765957019963,1.0375,2953.9,2953.8,3.38646956]
[1765957020176,0.3569,2953.9,2953.8,3.38646956]
[1765957020368,0.1928,2954.1,2953.8,6.77193912]
[1765957020876,0.8447,2953.9,2953.8,0.001]
[1765957022152,4.23005495,2953.9,2953.8,0.001]
[1765957022354,5.49249304,2953.9,2953.8,0.001]
[1765957022983,4.23005495,2953.9,2953.8,0.001]
[1765957023685,0.8447,2953.9,2953.8,0.001]
[1765957023981,0.3569,2953.9,2953.8,0.001]
[1765957024192,0.8238,2953.9,2953.8,0.001]
[1765957027475,0.1928,2954.1,2953.8,0.001]
[1765957027674,0.8449,2953.9,2953.8,0.001]
[1765957028968,4.23025495,2953.9,2953.8,0.001]
[1765957029284,1.62572078,2953.9,2953.8,0.001]
[1765957029594,4.23025495,2953.9,2953.8,0.001]
[1765957031179,0.4669,2954.7,2953.8,0.496]
[1765957032094,0.4669,2954.7,2953.9,10.15606485]
[1765957033804,0.3877,2954.0,2953.9,3.38535495]
[1765957034008,0.546,2954.9,2953.8,0.001]
[1765957034009,1.0386,2953.9,2953.8,0.001]
[1765957034980,1.48097959,2953.9,2953.8,0.001]